[Event "Late-Titled-Tuesday-Blitz-January-30-2024"]
[Site "Chess.com"]
[Date "2024.01.30"]
[Round "11"]
[White "Noki102"]
[Black "jcmesafischer"]
[Result "1-0"]
[WhiteElo "2532"]
[BlackElo "2365"]
[TimeControl "180+1"]
[EndTime "16:03:54 PST"]
[Termination "Noki102 won by checkmate"]

1. d4 {[%clk 0:03:00.9]} 1... Nf6 {[%clk 0:02:53.8]} 2. Nf3 {[%clk 0:03:00.9]}
2... d5 {[%clk 0:02:38.4]} 3. Bf4 {[%clk 0:03:00.7]} 3... c6 {[%clk 0:02:36.7]}
4. e3 {[%clk 0:03:00.9]} 4... g6 {[%clk 0:02:32.3]} 5. Nbd2 {[%clk 0:02:57.2]}
5... Bg7 {[%clk 0:02:31.8]} 6. Bd3 {[%clk 0:02:57.5]} 6... Na6 {[%clk
0:02:29.4]} 7. c3 {[%clk 0:02:55.9]} 7... Nc7 {[%clk 0:02:29]} 8. h3 {[%clk
0:02:56.3]} 8... Ne6 {[%clk 0:02:28.4]} 9. Bh2 {[%clk 0:02:56]} 9... a5 {[%clk
0:02:27.4]} 10. a4 {[%clk 0:02:54.8]} 10... O-O {[%clk 0:02:26.1]} 11. O-O
{[%clk 0:02:55.1]} 11... h6 {[%clk 0:02:24.6]} 12. Re1 {[%clk 0:02:55.2]} 12...
Ng5 {[%clk 0:02:24.4]} 13. Nxg5 {[%clk 0:02:52.9]} 13... hxg5 {[%clk 0:02:25.3]}
14. e4 {[%clk 0:02:47.7]} 14... dxe4 {[%clk 0:02:09.7]} 15. Nxe4 {[%clk
0:02:48.6]} 15... Nxe4 {[%clk 0:02:09.2]} 16. Bxe4 {[%clk 0:02:48.4]} 16... e6
{[%clk 0:01:39.3]} 17. Qb3 {[%clk 0:02:42.6]} 17... Bf6 {[%clk 0:01:18.2]} 18.
Be5 {[%clk 0:02:34.8]} 18... Bxe5 {[%clk 0:01:16]} 19. dxe5 {[%clk 0:02:34.3]}
19... Qc7 {[%clk 0:01:15.5]} 20. Rad1 {[%clk 0:02:29.1]} 20... Qxe5 {[%clk
0:01:05.2]} 21. Bxg6 {[%clk 0:02:15.4]} 21... Qc7 {[%clk 0:00:57.7]} 22. Bb1
{[%clk 0:02:12]} 22... b5 {[%clk 0:00:47.5]} 23. Qc2 {[%clk 0:02:10.2]} 23... f5
{[%clk 0:00:47]} 24. Ba2 {[%clk 0:02:09.1]} 24... Rf6 {[%clk 0:00:40.2]} 25. Qd2
{[%clk 0:02:01.3]} 25... bxa4 {[%clk 0:00:34.1]} 26. Qxg5+ {[%clk 0:02:00.4]}
26... Kf7 {[%clk 0:00:33.4]} 27. Rd4 {[%clk 0:01:44]} 27... Rg6 {[%clk
0:00:20.5]} 28. Qxf5+ {[%clk 0:01:43.7]} 28... Rf6 {[%clk 0:00:18.9]} 29. Qh5+
{[%clk 0:01:42.9]} 29... Ke7 {[%clk 0:00:17.9]} 30. Rg4 {[%clk 0:01:39.1]} 30...
Qb6 {[%clk 0:00:14.3]} 31. Rg7+ {[%clk 0:01:35.2]} 31... Kd6 {[%clk 0:00:06.7]}
32. Qe5# {[%clk 0:01:34.4]} 1-0

[Event "Late-Titled-Tuesday-Blitz-January-30-2024"]
[Site "Chess.com"]
[Date "2024.01.30"]
[Round "11"]
[White "Arlo2024"]
[Black "maurovargas01"]
[Result "1-0"]
[WhiteElo "2269"]
[BlackElo "1881"]
[TimeControl "180+1"]
[EndTime "16:04:01 PST"]
[Termination "Arlo2024 won by checkmate"]

1. e4 {[%clk 0:03:00.9]} 1... c6 {[%clk 0:01:43.9]} 2. d4 {[%clk 0:03:00.5]}
2... d5 {[%clk 0:01:44.2]} 3. exd5 {[%clk 0:03:01.4]} 3... cxd5 {[%clk 0:01:45]}
4. Bd3 {[%clk 0:03:01.6]} 4... Nc6 {[%clk 0:01:45.1]} 5. c3 {[%clk 0:03:01.8]}
5... Nf6 {[%clk 0:01:43.5]} 6. h3 {[%clk 0:03:02.4]} 6... e5 {[%clk 0:01:36.5]}
7. dxe5 {[%clk 0:03:03.3]} 7... Nxe5 {[%clk 0:01:35.9]} 8. Nf3 {[%clk
0:03:03.2]} 8... Nxd3+ {[%clk 0:01:34.2]} 9. Qxd3 {[%clk 0:03:03.9]} 9... Be6
{[%clk 0:01:31.7]} 10. O-O {[%clk 0:03:04.1]} 10... Bd6 {[%clk 0:01:30.7]} 11.
Be3 {[%clk 0:02:56.5]} 11... O-O {[%clk 0:01:30.4]} 12. Nbd2 {[%clk 0:02:56.3]}
12... Qd7 {[%clk 0:01:30.3]} 13. Bd4 {[%clk 0:02:26.7]} 13... Bf5 {[%clk
0:01:15.9]} 14. Qe3 {[%clk 0:02:14.3]} 14... h6 {[%clk 0:00:51.6]} 15. Bxf6
{[%clk 0:02:07.9]} 15... Rae8 {[%clk 0:00:50.9]} 16. Qd4 {[%clk 0:01:56.2]}
16... b6 {[%clk 0:00:43.4]} 17. Bxg7 {[%clk 0:01:33.4]} 17... Bc5 {[%clk
0:00:40.6]} 18. Qf6 {[%clk 0:01:26.4]} 18... Bg6 {[%clk 0:00:35.8]} 19. Bh8
{[%clk 0:01:15.1]} 19... Bd4 {[%clk 0:00:14.1]} 20. cxd4 {[%clk 0:01:11]} 20...
Qe6 {[%clk 0:00:05.2]} 21. Qg7# {[%clk 0:01:10]} 1-0

[Event "Late-Titled-Tuesday-Blitz-January-30-2024"]
[Site "Chess.com"]
[Date "2024.01.30"]
[Round "11"]
[White "reevecanada"]
[Black "TheMagician"]
[Result "0-1"]
[WhiteElo "2561"]
[BlackElo "2254"]
[TimeControl "180+1"]
[EndTime "16:04:11 PST"]
[Termination "TheMagician won by checkmate"]

1. e4 {[%clk 0:03:00.9]} 1... c5 {[%clk 0:02:59.3]} 2. Nf3 {[%clk 0:03:00.4]}
2... e6 {[%clk 0:02:58.9]} 3. b3 {[%clk 0:02:59.5]} 3... d5 {[%clk 0:02:58.3]}
4. exd5 {[%clk 0:02:57.5]} 4... Qxd5 {[%clk 0:02:55.7]} 5. Bb2 {[%clk
0:02:56.2]} 5... Nf6 {[%clk 0:02:54.5]} 6. Nc3 {[%clk 0:02:55.3]} 6... Qd8
{[%clk 0:02:54.1]} 7. Bb5+ {[%clk 0:02:54.9]} 7... Bd7 {[%clk 0:02:54.2]} 8.
Bxd7+ {[%clk 0:02:55.5]} 8... Qxd7 {[%clk 0:02:48.8]} 9. O-O {[%clk 0:02:56.4]}
9... Nc6 {[%clk 0:02:48.5]} 10. Re1 {[%clk 0:02:57.3]} 10... Be7 {[%clk
0:02:48.1]} 11. Ne4 {[%clk 0:02:55]} 11... Nxe4 {[%clk 0:02:44]} 12. Rxe4 {[%clk
0:02:55.9]} 12... O-O {[%clk 0:02:43.6]} 13. Rg4 {[%clk 0:02:53.8]} 13... f6
{[%clk 0:02:41.1]} 14. d4 {[%clk 0:02:48.5]} 14... e5 {[%clk 0:02:39.6]} 15. Re4
{[%clk 0:02:36.2]} 15... Nxd4 {[%clk 0:02:29.6]} 16. Nxd4 {[%clk 0:02:33.4]}
16... cxd4 {[%clk 0:02:29]} 17. c3 {[%clk 0:02:32.7]} 17... Qc6 {[%clk
0:02:24.7]} 18. Qc2 {[%clk 0:02:17.5]} 18... Rac8 {[%clk 0:02:13.7]} 19. Rae1
{[%clk 0:02:09.4]} 19... b5 {[%clk 0:02:05]} 20. f4 {[%clk 0:02:01.9]} 20...
dxc3 {[%clk 0:01:59.2]} 21. Bc1 {[%clk 0:02:01.9]} 21... Bc5+ {[%clk 0:01:56.4]}
22. Kh1 {[%clk 0:02:01.5]} 22... Bd4 {[%clk 0:01:54.3]} 23. Be3 {[%clk
0:01:58.7]} 23... Rfd8 {[%clk 0:01:48.1]} 24. fxe5 {[%clk 0:01:56.4]} 24... Bxe5
{[%clk 0:01:40.6]} 25. Bc1 {[%clk 0:01:48.4]} 25... a6 {[%clk 0:01:39.9]} 26.
Rg4 {[%clk 0:01:44.8]} 26... Rd5 {[%clk 0:01:29.1]} 27. Bh6 {[%clk 0:01:41.2]}
27... Rc7 {[%clk 0:01:14]} 28. Rf1 {[%clk 0:01:37.3]} 28... Rf7 {[%clk 0:01:04]}
29. h4 {[%clk 0:01:31.6]} 29... f5 {[%clk 0:00:57.3]} 30. Rxf5 {[%clk
0:01:11.4]} 30... Qxh6 {[%clk 0:00:57]} 31. Rxf7 {[%clk 0:01:08.1]} 31... Kxf7
{[%clk 0:00:57]} 32. Qf5+ {[%clk 0:01:08.1]} 32... Qf6 {[%clk 0:00:54.3]} 33.
Qh5+ {[%clk 0:01:07.4]} 33... Ke7 {[%clk 0:00:44.9]} 34. g3 {[%clk 0:01:02.2]}
34... Rd1+ {[%clk 0:00:38.5]} 35. Kh2 {[%clk 0:01:01]} 35... Qf2+ {[%clk
0:00:38.4]} 36. Kh3 {[%clk 0:01:01.9]} 36... Rh1# {[%clk 0:00:37.2]} 0-1

[Event "Late-Titled-Tuesday-Blitz-January-30-2024"]
[Site "Chess.com"]
[Date "2024.01.30"]
[Round "11"]
[White "Viktor_Poddubnyi"]
[Black "DraningWaterHi"]
[Result "1-0"]
[WhiteElo "2327"]
[BlackElo "2130"]
[TimeControl "180+1"]
[EndTime "16:04:20 PST"]
[Termination "Viktor_Poddubnyi won by checkmate"]

1. e4 {[%clk 0:03:00]} 1... e5 {[%clk 0:03:00]} 2. f4 {[%clk 0:02:59.4]} 2... d5
{[%clk 0:02:58.8]} 3. exd5 {[%clk 0:02:58.7]} 3... exf4 {[%clk 0:02:58.8]} 4.
Nf3 {[%clk 0:02:58.3]} 4... Nf6 {[%clk 0:02:57.6]} 5. c4 {[%clk 0:02:58.4]} 5...
c6 {[%clk 0:02:56.6]} 6. d4 {[%clk 0:02:58.8]} 6... cxd5 {[%clk 0:02:56.7]} 7.
Bxf4 {[%clk 0:02:59.3]} 7... dxc4 {[%clk 0:02:57]} 8. Bxc4 {[%clk 0:02:58.2]}
8... Bb4+ {[%clk 0:02:57.5]} 9. Nc3 {[%clk 0:02:57.6]} 9... O-O {[%clk
0:02:56.3]} 10. O-O {[%clk 0:02:57.3]} 10... Bg4 {[%clk 0:02:53.6]} 11. a3
{[%clk 0:02:52.3]} 11... Bd6 {[%clk 0:02:51.6]} 12. Bg5 {[%clk 0:02:49]} 12...
h6 {[%clk 0:02:48.6]} 13. Bh4 {[%clk 0:02:38.5]} 13... g5 {[%clk 0:02:45.7]} 14.
Bg3 {[%clk 0:02:20.8]} 14... Bxg3 {[%clk 0:02:44.1]} 15. hxg3 {[%clk 0:02:21.7]}
15... Nbd7 {[%clk 0:02:44.9]} 16. Qd2 {[%clk 0:01:56.1]} 16... Qc7 {[%clk
0:02:39.5]} 17. Bb3 {[%clk 0:01:43.5]} 17... Qxg3 {[%clk 0:02:38.8]} 18. Ne5
{[%clk 0:01:39.2]} 18... Nxe5 {[%clk 0:02:32.8]} 19. dxe5 {[%clk 0:01:37.3]}
19... Qxe5 {[%clk 0:02:33.7]} 20. Rae1 {[%clk 0:01:25.5]} 20... Qc5+ {[%clk
0:02:30.5]} 21. Kh1 {[%clk 0:01:25.9]} 21... Nh5 {[%clk 0:02:26.9]} 22. Qd3
{[%clk 0:01:18.4]} 22... Qc6 {[%clk 0:02:07.5]} 23. Nd5 {[%clk 0:01:10.9]} 23...
Rae8 {[%clk 0:02:02]} 24. Ne7+ {[%clk 0:01:02]} 24... Rxe7 {[%clk 0:02:01.6]}
25. Rxe7 {[%clk 0:01:02.9]} 25... Nf4 {[%clk 0:01:59.4]} 26. Qc2 {[%clk
0:00:52]} 26... Qd6 {[%clk 0:01:50.5]} 27. Rxb7 {[%clk 0:00:48]} 27... Be6
{[%clk 0:01:40.2]} 28. Bxe6 {[%clk 0:00:44]} 28... Qxe6 {[%clk 0:01:41.1]} 29.
Rxa7 {[%clk 0:00:39.4]} 29... Qe3 {[%clk 0:01:38.5]} 30. Rc7 {[%clk 0:00:35.2]}
30... Rd8 {[%clk 0:01:37.9]} 31. Rc8 {[%clk 0:00:34.3]} 31... Rxc8 {[%clk
0:01:38]} 32. Qxc8+ {[%clk 0:00:35.2]} 32... Kg7 {[%clk 0:01:38.8]} 33. Qc3+
{[%clk 0:00:34.6]} 33... Qxc3 {[%clk 0:01:38.8]} 34. bxc3 {[%clk 0:00:35.5]}
34... Nd5 {[%clk 0:01:38.8]} 35. c4 {[%clk 0:00:33.9]} 35... Ne3 {[%clk
0:01:39]} 36. Rc1 {[%clk 0:00:34.4]} 36... f5 {[%clk 0:01:39]} 37. a4 {[%clk
0:00:34]} 37... f4 {[%clk 0:01:39.9]} 38. a5 {[%clk 0:00:33.5]} 38... Kg6 {[%clk
0:01:40.8]} 39. a6 {[%clk 0:00:33.3]} 39... Kh5 {[%clk 0:01:41.7]} 40. a7 {[%clk
0:00:32.3]} 40... Kh4 {[%clk 0:01:42.6]} 41. a8=Q {[%clk 0:00:31.4]} 41... h5
{[%clk 0:01:43.5]} 42. Qf3 {[%clk 0:00:29.9]} 42... g4 {[%clk 0:01:43.2]} 43.
Qxf4 {[%clk 0:00:29.1]} 43... Nxg2 {[%clk 0:01:41.2]} 44. Qh2+ {[%clk
0:00:26.9]} 44... Kg5 {[%clk 0:01:40.3]} 45. Qxg2 {[%clk 0:00:26.8]} 45... Kh4
{[%clk 0:01:41.2]} 46. c5 {[%clk 0:00:25.9]} 46... Kg5 {[%clk 0:01:41.7]} 47.
Qg3 {[%clk 0:00:25.3]} 47... h4 {[%clk 0:01:41.9]} 48. Qe5+ {[%clk 0:00:25.8]}
48... Kh6 {[%clk 0:01:41.7]} 49. Rd1 {[%clk 0:00:25.5]} 49... g3 {[%clk
0:01:42.6]} 50. Rd6+ {[%clk 0:00:25.2]} 50... Kh7 {[%clk 0:01:42.4]} 51. Qe7+
{[%clk 0:00:25.2]} 51... Kg8 {[%clk 0:01:43.3]} 52. Rd8# {[%clk 0:00:26.1]} 1-0

[Event "Late-Titled-Tuesday-Blitz-January-30-2024"]
[Site "Chess.com"]
[Date "2024.01.30"]
[Round "11"]
[White "cristiano78"]
[Black "AndreyNeves"]
[Result "0-1"]
[WhiteElo "2274"]
[BlackElo "2107"]
[TimeControl "180+1"]
[EndTime "16:04:20 PST"]
[Termination "AndreyNeves won by resignation"]

1. d4 {[%clk 0:03:00.9]} 1... d5 {[%clk 0:02:59]} 2. c4 {[%clk 0:02:59.6]} 2...
e6 {[%clk 0:02:57.5]} 3. Nf3 {[%clk 0:02:59]} 3... Nf6 {[%clk 0:02:57]} 4. Nc3
{[%clk 0:02:58.5]} 4... a6 {[%clk 0:02:56]} 5. a4 {[%clk 0:02:54.4]} 5... Nc6
{[%clk 0:02:50.9]} 6. Bg5 {[%clk 0:02:51.4]} 6... Be7 {[%clk 0:02:48.9]} 7. e3
{[%clk 0:02:50.8]} 7... O-O {[%clk 0:02:44.2]} 8. c5 {[%clk 0:02:50.5]} 8... Ne4
{[%clk 0:02:41.6]} 9. Bxe7 {[%clk 0:02:49.7]} 9... Qxe7 {[%clk 0:02:38]} 10.
Nxe4 {[%clk 0:02:47.7]} 10... dxe4 {[%clk 0:02:37.4]} 11. Nd2 {[%clk 0:02:48.3]}
11... e5 {[%clk 0:02:36.4]} 12. d5 {[%clk 0:02:44]} 12... Nb4 {[%clk 0:02:12.1]}
13. Nxe4 {[%clk 0:02:43.1]} 13... Bf5 {[%clk 0:02:05]} 14. d6 {[%clk 0:02:42.5]}
14... cxd6 {[%clk 0:02:01.2]} 15. cxd6 {[%clk 0:02:40.9]} 15... Qh4 {[%clk
0:01:49.8]} 16. Ng3 {[%clk 0:02:36.5]} 16... Nc2+ {[%clk 0:01:43.7]} 17. Kd2
{[%clk 0:02:33.2]} 17... Qb4+ {[%clk 0:01:38.8]} 18. Kc1 {[%clk 0:02:26]} 18...
Nxa1 {[%clk 0:01:32.8]} 19. Nxf5 {[%clk 0:02:01.1]} 19... Nb3+ {[%clk
0:01:06.5]} 20. Kb1 {[%clk 0:01:58.8]} 20... Qxa4 {[%clk 0:00:47.9]} 21. Ne7+
{[%clk 0:01:43.5]} 21... Kh8 {[%clk 0:00:46.1]} 22. Qh5 {[%clk 0:01:33.7]} 22...
Rac8 {[%clk 0:00:35.7]} 0-1

[Event "Late-Titled-Tuesday-Blitz-January-30-2024"]
[Site "Chess.com"]
[Date "2024.01.30"]
[Round "11"]
[White "Nouali_Mohamed"]
[Black "egnfanclub"]
[Result "0-1"]
[WhiteElo "2456"]
[BlackElo "2373"]
[TimeControl "180+1"]
[EndTime "16:04:23 PST"]
[Termination "egnfanclub won by resignation"]

1. e4 {[%clk 0:02:59.1]} 1... e5 {[%clk 0:02:59.1]} 2. Bc4 {[%clk 0:02:59.2]}
2... Nf6 {[%clk 0:02:58.9]} 3. Nc3 {[%clk 0:02:59.6]} 3... Nxe4 {[%clk
0:02:58.7]} 4. Qh5 {[%clk 0:02:59.9]} 4... Nd6 {[%clk 0:02:57.5]} 5. Bb3 {[%clk
0:03:00.3]} 5... Nc6 {[%clk 0:02:55.3]} 6. Nb5 {[%clk 0:03:00.1]} 6... g6 {[%clk
0:02:55.8]} 7. Qf3 {[%clk 0:03:00.3]} 7... f5 {[%clk 0:02:56]} 8. Qd5 {[%clk
0:02:59.5]} 8... Qe7 {[%clk 0:02:54.2]} 9. Nxc7+ {[%clk 0:02:59.7]} 9... Kd8
{[%clk 0:02:53.5]} 10. Nxa8 {[%clk 0:03:00.6]} 10... b6 {[%clk 0:02:54.1]} 11.
Ne2 {[%clk 0:03:00.1]} 11... Bb7 {[%clk 0:02:53.6]} 12. Qd3 {[%clk 0:03:00.6]}
12... Bg7 {[%clk 0:02:31.2]} 13. O-O {[%clk 0:02:58]} 13... e4 {[%clk
0:02:03.3]} 14. Qh3 {[%clk 0:02:57.1]} 14... g5 {[%clk 0:01:49.4]} 15. Qh5
{[%clk 0:02:50.2]} 15... h6 {[%clk 0:01:23.8]} 16. d3 {[%clk 0:02:49]} 16... Ne5
{[%clk 0:01:04.1]} 17. d4 {[%clk 0:02:32.7]} 17... Ng4 {[%clk 0:00:56.4]} 18.
Ng3 {[%clk 0:02:20.9]} 18... e3 {[%clk 0:00:50.8]} 19. Nxf5 {[%clk 0:02:06.2]}
19... exf2+ {[%clk 0:00:45.9]} 20. Rxf2 {[%clk 0:01:53.4]} 20... Qe1+ {[%clk
0:00:27.3]} 21. Rf1 {[%clk 0:01:52.7]} 21... Qe4 {[%clk 0:00:27.4]} 22. d5
{[%clk 0:01:04.9]} 22... Nxf5 {[%clk 0:00:27.3]} 23. Bxg5+ {[%clk 0:01:05.4]}
23... hxg5 {[%clk 0:00:25.1]} 24. Qxg5+ {[%clk 0:01:06.3]} 24... Kc8 {[%clk
0:00:23.8]} 25. Qxf5 {[%clk 0:01:06.3]} 25... Bd4+ {[%clk 0:00:23.4]} 26. Rf2
{[%clk 0:00:54.5]} 26... Qxf5 {[%clk 0:00:23.1]} 0-1

[Event "Late-Titled-Tuesday-Blitz-January-30-2024"]
[Site "Chess.com"]
[Date "2024.01.30"]
[Round "11"]
[White "C_K_G"]
[Black "Boninknights"]
[Result "0-1"]
[WhiteElo "2189"]
[BlackElo "2412"]
[TimeControl "180+1"]
[EndTime "16:04:24 PST"]
[Termination "Boninknights won on time"]

1. e4 {[%clk 0:02:54.2]} 1... e5 {[%clk 0:02:58.5]} 2. Nf3 {[%clk 0:02:53.4]}
2... Qe7 {[%clk 0:02:57.6]} 3. Bc4 {[%clk 0:02:51.1]} 3... g6 {[%clk 0:02:55]}
4. O-O {[%clk 0:02:47.4]} 4... Bg7 {[%clk 0:02:53.4]} 5. c3 {[%clk 0:02:45.4]}
5... Nf6 {[%clk 0:02:51.5]} 6. d4 {[%clk 0:02:43.3]} 6... d6 {[%clk 0:02:50.7]}
7. h3 {[%clk 0:02:34.7]} 7... O-O {[%clk 0:02:46.1]} 8. Re1 {[%clk 0:02:33]}
8... b6 {[%clk 0:02:38.4]} 9. Nbd2 {[%clk 0:02:33.4]} 9... Bb7 {[%clk
0:02:36.6]} 10. Bb3 {[%clk 0:02:21.3]} 10... Nbd7 {[%clk 0:02:24.1]} 11. Bc2
{[%clk 0:02:12.2]} 11... h6 {[%clk 0:02:16.3]} 12. Nf1 {[%clk 0:02:09.2]} 12...
b5 {[%clk 0:02:14.6]} 13. Ng3 {[%clk 0:02:07]} 13... c5 {[%clk 0:02:09.6]} 14.
d5 {[%clk 0:01:50.3]} 14... c4 {[%clk 0:02:07.4]} 15. Be3 {[%clk 0:01:48.7]}
15... Rfc8 {[%clk 0:02:03.4]} 16. Qd2 {[%clk 0:01:44.6]} 16... Kh7 {[%clk
0:02:01.6]} 17. Kh2 {[%clk 0:01:32.8]} 17... Nc5 {[%clk 0:01:58.9]} 18. Rh1
{[%clk 0:01:30.2]} 18... a5 {[%clk 0:01:50.7]} 19. Kg1 {[%clk 0:01:28.2]} 19...
a4 {[%clk 0:01:41.7]} 20. h4 {[%clk 0:01:01.3]} 20... a3 {[%clk 0:01:27.3]} 21.
b3 {[%clk 0:00:56.2]} 21... cxb3 {[%clk 0:01:25.3]} 22. axb3 {[%clk 0:00:57.1]}
22... Qc7 {[%clk 0:01:21.9]} 23. h5 {[%clk 0:00:44.5]} 23... Ng4 {[%clk
0:01:19.1]} 24. hxg6+ {[%clk 0:00:42]} 24... fxg6 {[%clk 0:01:18.2]} 25. Ng5+
{[%clk 0:00:38.1]} 25... Kg8 {[%clk 0:01:17.2]} 26. Ne6 {[%clk 0:00:18.4]} 26...
Nxe6 {[%clk 0:01:14.6]} 27. dxe6 {[%clk 0:00:19.3]} 27... Qxc3 {[%clk
0:01:13.6]} 28. Qxd6 {[%clk 0:00:15.3]} 28... Qxa1+ {[%clk 0:01:12.1]} 29. Bd1
{[%clk 0:00:14]} 29... Rd8 {[%clk 0:01:11]} 0-1

[Event "Late-Titled-Tuesday-Blitz-January-30-2024"]
[Site "Chess.com"]
[Date "2024.01.30"]
[Round "11"]
[White "KaydenTroffChess"]
[Black "santosalberto1987"]
[Result "1-0"]
[WhiteElo "2851"]
[BlackElo "2557"]
[TimeControl "180+1"]
[EndTime "16:04:27 PST"]
[Termination "KaydenTroffChess won by resignation"]

1. d4 {[%clk 0:03:00.9]} 1... Nf6 {[%clk 0:03:00]} 2. Nf3 {[%clk 0:03:00.8]}
2... d6 {[%clk 0:02:59.2]} 3. Bg5 {[%clk 0:03:00.8]} 3... Nbd7 {[%clk
0:02:57.1]} 4. Nc3 {[%clk 0:03:00.4]} 4... d5 {[%clk 0:02:46.5]} 5. Qd3 {[%clk
0:02:52.1]} 5... e6 {[%clk 0:02:42.6]} 6. e4 {[%clk 0:02:51.6]} 6... dxe4 {[%clk
0:02:41.2]} 7. Nxe4 {[%clk 0:02:51.5]} 7... Be7 {[%clk 0:02:40.9]} 8. h4 {[%clk
0:02:26.9]} 8... O-O {[%clk 0:02:36.2]} 9. O-O-O {[%clk 0:02:25.1]} 9... b6
{[%clk 0:02:35.8]} 10. Bxf6 {[%clk 0:02:22.1]} 10... Nxf6 {[%clk 0:02:35.4]} 11.
Nfg5 {[%clk 0:02:19.2]} 11... g6 {[%clk 0:02:30.5]} 12. h5 {[%clk 0:02:09.1]}
12... Nxh5 {[%clk 0:01:49.5]} 13. Rxh5 {[%clk 0:02:05.2]} 13... f5 {[%clk
0:01:49.4]} 14. Nxh7 {[%clk 0:01:45.8]} 14... gxh5 {[%clk 0:01:43.8]} 15. Nxf8
{[%clk 0:01:45]} 15... Qxf8 {[%clk 0:01:43]} 16. Nc3 {[%clk 0:01:29.3]} 16...
Bb7 {[%clk 0:01:42.7]} 17. Qe3 {[%clk 0:01:28.7]} 17... Qf7 {[%clk 0:01:36.5]}
18. Bc4 {[%clk 0:01:28.4]} 18... Bd5 {[%clk 0:01:33.5]} 19. Nxd5 {[%clk
0:01:18.1]} 19... exd5 {[%clk 0:01:34.4]} 20. Bxd5 {[%clk 0:01:18.8]} 20... Qxd5
{[%clk 0:01:34.5]} 21. Qxe7 {[%clk 0:01:19]} 21... Qxg2 {[%clk 0:01:31.2]} 22.
Qe6+ {[%clk 0:01:18.5]} 22... Kg7 {[%clk 0:01:26.4]} 23. Qe5+ {[%clk 0:01:10.6]}
23... Kg6 {[%clk 0:01:22.5]} 24. Qxc7 {[%clk 0:00:57.5]} 24... Rf8 {[%clk
0:01:20]} 25. Qd6+ {[%clk 0:00:56.7]} 25... Rf6 {[%clk 0:01:19.8]} 26. Qd8
{[%clk 0:00:55.7]} 26... Kg7 {[%clk 0:01:05.6]} 27. d5 {[%clk 0:00:55.2]} 27...
h4 {[%clk 0:01:04.7]} 28. d6 {[%clk 0:00:55]} 28... h3 {[%clk 0:01:04.7]} 29. d7
{[%clk 0:00:49.5]} 1-0

[Event "Late-Titled-Tuesday-Blitz-January-30-2024"]
[Site "Chess.com"]
[Date "2024.01.30"]
[Round "11"]
[White "Tomytoteph"]
[Black "MaxLeto"]
[Result "1-0"]
[WhiteElo "2601"]
[BlackElo "2419"]
[TimeControl "180+1"]
[EndTime "16:04:33 PST"]
[Termination "Tomytoteph won by resignation"]

1. e4 {[%clk 0:03:00.9]} 1... c5 {[%clk 0:02:59.9]} 2. Nf3 {[%clk 0:03:00]} 2...
d6 {[%clk 0:03:00.5]} 3. d4 {[%clk 0:02:59.7]} 3... cxd4 {[%clk 0:03:01.4]} 4.
Nxd4 {[%clk 0:02:59.4]} 4... Nf6 {[%clk 0:03:01.7]} 5. Nc3 {[%clk 0:02:59.3]}
5... a6 {[%clk 0:03:02.3]} 6. Bc4 {[%clk 0:02:59.6]} 6... e6 {[%clk 0:03:02.3]}
7. Bb3 {[%clk 0:03:00.2]} 7... b5 {[%clk 0:02:58.9]} 8. Be3 {[%clk 0:03:00.3]}
8... Be7 {[%clk 0:02:57.1]} 9. Qf3 {[%clk 0:02:57.6]} 9... Qc7 {[%clk
0:02:51.7]} 10. a3 {[%clk 0:02:50.2]} 10... O-O {[%clk 0:02:50.9]} 11. g4 {[%clk
0:02:49.7]} 11... Bb7 {[%clk 0:02:49.1]} 12. O-O-O {[%clk 0:02:49.1]} 12... Nbd7
{[%clk 0:02:45.1]} 13. g5 {[%clk 0:02:49.2]} 13... Ne5 {[%clk 0:02:45]} 14. Qg2
{[%clk 0:02:47.4]} 14... Nfd7 {[%clk 0:02:31.6]} 15. f4 {[%clk 0:02:45.6]} 15...
Nc4 {[%clk 0:02:29.8]} 16. Bxc4 {[%clk 0:02:46.1]} 16... Qxc4 {[%clk 0:02:29.8]}
17. h4 {[%clk 0:02:46.1]} 17... Rfe8 {[%clk 0:02:12.3]} 18. h5 {[%clk
0:02:44.8]} 18... b4 {[%clk 0:02:09.7]} 19. axb4 {[%clk 0:02:44.5]} 19... Qxb4
{[%clk 0:02:10.6]} 20. g6 {[%clk 0:02:45.3]} 20... Bf6 {[%clk 0:02:05.5]} 21.
Qh3 {[%clk 0:02:05.8]} 21... Rac8 {[%clk 0:01:14.8]} 22. h6 {[%clk 0:01:34.3]}
22... hxg6 {[%clk 0:01:02.6]} 23. hxg7 {[%clk 0:01:34.2]} 23... Bxg7 {[%clk
0:01:03.4]} 24. f5 {[%clk 0:01:32.9]} 24... Rxc3 {[%clk 0:00:27.8]} 25. bxc3
{[%clk 0:01:25.5]} 25... Qxc3 {[%clk 0:00:26.2]} 26. fxg6 {[%clk 0:01:22.5]}
26... Ne5 {[%clk 0:00:02.7]} 27. gxf7+ {[%clk 0:01:22]} 27... Nxf7 {[%clk
0:00:03.6]} 28. Rdg1 {[%clk 0:01:18.8]} 28... Kf8 {[%clk 0:00:02.4]} 29. Rxg7
{[%clk 0:01:14.9]} 29... Kxg7 {[%clk 0:00:03.3]} 30. Bh6+ {[%clk 0:01:14.8]}
30... Kf6 {[%clk 0:00:03.6]} 31. Qxc3 {[%clk 0:01:15.7]} 31... Ke7 {[%clk
0:00:03.1]} 32. Be3 {[%clk 0:01:13.7]} 32... Rc8 {[%clk 0:00:03.2]} 33. Qb3
{[%clk 0:01:12.2]} 33... Bxe4 {[%clk 0:00:03.4]} 34. Qxe6+ {[%clk 0:01:12.1]}
1-0

[Event "Late-Titled-Tuesday-Blitz-January-30-2024"]
[Site "Chess.com"]
[Date "2024.01.30"]
[Round "11"]
[White "Evgeny81"]
[Black "Zura_19"]
[Result "1-0"]
[WhiteElo "2729"]
[BlackElo "2570"]
[TimeControl "180+1"]
[EndTime "16:04:35 PST"]
[Termination "Evgeny81 won by resignation"]

1. e4 {[%clk 0:03:00.9]} 1... c6 {[%clk 0:02:55.7]} 2. d4 {[%clk 0:03:00.5]}
2... d5 {[%clk 0:02:55.3]} 3. Nc3 {[%clk 0:03:01.1]} 3... dxe4 {[%clk
0:02:54.9]} 4. Nxe4 {[%clk 0:03:02]} 4... Nf6 {[%clk 0:02:55.3]} 5. Nxf6+ {[%clk
0:03:01.9]} 5... exf6 {[%clk 0:02:56.2]} 6. Bd3 {[%clk 0:03:00.1]} 6... Bd6
{[%clk 0:02:54.3]} 7. Ne2 {[%clk 0:02:58.9]} 7... O-O {[%clk 0:02:53.2]} 8. O-O
{[%clk 0:02:55.3]} 8... Re8 {[%clk 0:02:52.7]} 9. Bf4 {[%clk 0:02:53.4]} 9...
Bg4 {[%clk 0:02:39.1]} 10. f3 {[%clk 0:02:50.5]} 10... Bh5 {[%clk 0:02:37.6]}
11. Qd2 {[%clk 0:02:43.7]} 11... Bg6 {[%clk 0:02:28.8]} 12. Bxd6 {[%clk
0:02:31.2]} 12... Qxd6 {[%clk 0:02:29.7]} 13. c3 {[%clk 0:02:27]} 13... Nd7
{[%clk 0:02:24.2]} 14. Rfe1 {[%clk 0:02:24.3]} 14... Nb6 {[%clk 0:02:11.8]} 15.
Ng3 {[%clk 0:02:17.9]} 15... Qd5 {[%clk 0:01:53.5]} 16. Be4 {[%clk 0:02:10]}
16... Qd7 {[%clk 0:01:37.2]} 17. Re2 {[%clk 0:02:06.5]} 17... Rad8 {[%clk
0:01:31.8]} 18. Rae1 {[%clk 0:02:05.6]} 18... Nc4 {[%clk 0:01:20.3]} 19. Qf4
{[%clk 0:01:58.3]} 19... Nd6 {[%clk 0:01:05.4]} 20. h4 {[%clk 0:01:55.3]} 20...
h5 {[%clk 0:00:57.4]} 21. Bxg6 {[%clk 0:01:40.2]} 21... fxg6 {[%clk 0:00:56.3]}
22. Ne4 {[%clk 0:01:33.4]} 22... Nf5 {[%clk 0:00:35.1]} 23. Nc5 {[%clk
0:01:25.5]} 23... Qf7 {[%clk 0:00:33.8]} 24. Kh2 {[%clk 0:01:09.3]} 24... b6
{[%clk 0:00:20.6]} 25. Ne6 {[%clk 0:01:03]} 25... Rd6 {[%clk 0:00:15.3]} 26. Ng5
{[%clk 0:01:02.8]} 26... fxg5 {[%clk 0:00:09.1]} 27. Rxe8+ {[%clk 0:01:02.2]}
27... Kh7 {[%clk 0:00:08.9]} 28. Qxg5 {[%clk 0:00:59.2]} 28... Rf6 {[%clk
0:00:06.4]} 29. Rc8 {[%clk 0:00:53]} 1-0